fUSD/lending_fUSD_20260513
["ID","MTS","AMOUNT","RATE_DAILY","PERIOD"]
[422172467,1778646642000,-151.0,0.00022753,7]
[422172468,1778646642000,-858.50842233,0.00023,2]
[422172469,1778646642000,-189.0,0.00023,2]
[422172456,1778646642000,-150.716,0.00022431,2]
[422172470,1778646642000,-1161.0,0.00023,2]
[422172458,1778646642000,-3541.0,0.00022431,2]
[422172460,1778646642000,-3654.6003323,0.000226,2]
[422172459,1778646642000,-178.97,0.00022593,2]
[422172462,1778646642000,-1105.01,0.00022691,2]
[422172461,1778646642000,-852.77,0.00022691,2]
[422172464,1778646642000,-530.47727054,0.0002271,2]
[422172466,1778646642000,-151.0,0.00022753,7]
[422172448,1778646642000,-175.0,0.00022,2]
[422172465,1778646642000,-151.0,0.00022753,7]
[422172473,1778646642000,-166.48,0.00023108,2]
[422172474,1778646642000,-1613.0,0.00023262,2]
[422172475,1778646642000,-241.66,0.00023288,4]
[422172472,1778646642000,-175.0,0.00023,2]
[422172480,1778646642000,-157.44,0.00023982,2]
[422172477,1778646642000,-151.0,0.00023288,2]
[422172476,1778646642000,-151.0,0.00023288,2]
[422172479,1778646642000,-500.0,0.00023781,2]
[422172478,1778646642000,-151.0,0.00023288,2]
[422172481,1778646642000,-500.0,0.00024,2]
[422172483,1778646642000,-1161.0,0.00024,2]
[422172482,1778646642000,-189.0,0.00024,2]
[422172420,1778646642000,-1161.0,0.0002,2]
[422172471,1778646642000,-6306.03,0.00023,2]
[422172449,1778646642000,-243.5200928,0.0002211,2]
[422172463,1778646642000,-4074.12,0.00022691,2]
[422172447,1778646642000,-1161.0,0.00022,2]
[422172444,1778646642000,-189.0,0.00022,2]
[422172418,1778646642000,-189.0,0.0002,2]
[422172426,1778646642000,-175.0,0.00021,2]
[422172427,1778646642000,-180.26,0.00021238,2]
[422172422,1778646642000,-570.4396422,0.0002041,30]
[422172424,1778646642000,-189.0,0.00021,2]
[422172421,1778646642000,-175.0,0.0002,2]
[422172423,1778646642000,-2000.0,0.0002086,2]
[422172429,1778646642000,-852.77,0.00021273,2]
[422172439,1778646642000,-160.0,0.00022,2]
[422172428,1778646642000,-1152.0,0.0002125,2]
[422172431,1778646642000,-4074.12,0.00021273,2]
[422172430,1778646642000,-1105.01,0.00021273,2]
[422172433,1778646642000,-375.42,0.000216,2]
[422172417,1778646642000,-400.0,0.0002,2]
[422172435,1778646642000,-178.31621022,0.00021835,2]
[422172432,1778646642000,-10119.9307845,0.00021318,2]
[422172453,1778646642000,-150.833,0.00022431,2]
[422172452,1778646642000,-166.813,0.00022431,2]
[422172450,1778646642000,-154.8096066,0.00022316,2]
[422172454,1778646642000,-150.0,0.00022431,2]
[422172451,1778646642000,-243.468,0.00022431,2]
[422172455,1778646642000,-150.0,0.00022431,2]
[422172441,1778646642000,-450.0,0.00022,2]
[422172437,1778646642000,-259.361985,0.00021918,2]
[422172434,1778646642000,-722.41935894,0.00021835,2]
[422172436,1778646642000,-179.85489006,0.000219,4]
[422172438,1778646642000,-5000.0,0.00021918,2]
[422172440,1778646642000,-300.0,0.00022,2]
[422172553,1778646643000,-507.57,0.00026066,7]
[422172528,1778646643000,-150.0,0.00025431,2]
[422172536,1778646643000,-508.0,0.00025606,3]
[422172540,1778646643000,-550.0,0.00026,2]
[422172511,1778646643000,-195.0,0.00025,2]
[422172526,1778646643000,-150.0,0.00025431,2]
[422172524,1778646643000,-150.0,0.00025431,2]
[422172534,1778646643000,-53956.23857637,0.000255,2]
[422172532,1778646643000,-3541.0,0.00025431,2]
[422172522,1778646643000,-150.0,0.00025431,2]
[422172515,1778646643000,-172.13,0.00025205,7]
[422172542,1778646643000,-362.01,0.00026035,2]
[422172538,1778646643000,-172.13,0.00025716,7]
[422172541,1778646643000,-325.43,0.00026031,2]
[422172559,1778646643000,-340.27,0.00026092,2]
[422172544,1778646643000,-507.49,0.00026037,2]
[422172555,1778646643000,-325.43,0.00026088,2]
[422172556,1778646643000,-325.44,0.00026089,2]
[422172543,1778646643000,-340.27,0.00026036,2]
[422172545,1778646643000,-507.57,0.00026038,2]
[422172558,1778646643000,-362.01,0.00026091,2]
[422172547,1778646643000,-325.44,0.0002606,7]
[422172560,1778646643000,-507.49,0.00026093,2]
[422172546,1778646643000,-325.43,0.00026059,7]
[422172548,1778646643000,-362.01,0.00026063,7]
[422172551,1778646643000,-507.49,0.00026065,7]
[422172549,1778646643000,-340.27,0.00026064,7]
[422172512,1778646643000,-1180.14026373,0.00025,2]
[422172530,1778646643000,-1353.0,0.00025431,2]
[422172520,1778646643000,-170.61,0.00025346,2]
[422172487,1778646643000,-1152.82969983,0.0002421,2]
[422172518,1778646643000,-172.13,0.00025287,2]
[422172493,1778646643000,-172.13,0.00024658,2]
[422172484,1778646643000,-175.0,0.00024,2]
[422172492,1778646643000,-151.0,0.00024658,2]
[422172486,1778646643000,-157.44,0.00024176,2]
[422172489,1778646643000,-508.0,0.00024397,2]
[422172485,1778646643000,-262.4,0.00024107,2]
[422172490,1778646643000,-1000.0,0.00024658,2]
[422172488,1778646643000,-190.05,0.00024349,2]
[422172491,1778646643000,-187.15,0.00024658,2]
[422172495,1778646643000,-488.15,0.00024658,2]
[422172505,1778646643000,-7218.20171558,0.00025,2]
[422172494,1778646643000,-170.61,0.00024658,2]
[422172497,1778646643000,-375.42,0.000247,7]
[422172514,1778646643000,-174.81,0.00025205,7]
[422172496,1778646643000,-6306.03,0.00024698,2]
[422172503,1778646643000,-173.17586745,0.00025,60]
[422172501,1778646643000,-437.4,0.0002497,2]
[422172499,1778646643000,-300.0,0.00024906,10]
[422172498,1778646643000,-155.32286247,0.00024905,7]
[422172502,1778646643000,-450.0,0.0002497,2]
[422172504,1778646643000,-998.11480699,0.00025,2]
[422172508,1778646643000,-4851.04467009,0.00025,2]
[422172506,1778646643000,-2228.09656728,0.00025,2]
[422172507,1778646643000,-169.42264821,0.00025,2]
[422172509,1778646643000,-151.64888359,0.00025,2]
[422172510,1778646643000,-150.0,0.00025,2]
[422172513,1778646643000,-181.0,0.00025,2]
[422172516,1778646643000,-170.61,0.00025205,7]
[422172500,1778646643000,-104126.00759942,0.00024907,7]
[422172561,1778646643000,-507.57,0.00026094,2]
[422172539,1778646643000,-170.61,0.00025755,7]
[422172563,1778646643000,-325.43,0.00026116,2]
[422172602,1778646643000,-362.01,0.00026262,2]
[422172606,1778646643000,-325.44,0.00026289,2]
[422172595,1778646643000,-325.44,0.00026232,7]
[422172605,1778646643000,-325.43,0.00026288,2]
[422172608,1778646643000,-340.27,0.00026291,2]
[422172618,1778646643000,-362.01,0.00026347,7]
[422172607,1778646643000,-362.01,0.0002629,2]
[422172610,1778646643000,-325.44,0.00026317,7]
[422172609,1778646643000,-507.57,0.00026292,2]
[422172611,1778646643000,-325.43,0.00026317,7]
[422172613,1778646643000,-362.01,0.00026319,7]
[422172612,1778646643000,-340.27,0.00026319,7]
[422172614,1778646643000,-507.57,0.0002632,7]
[422172615,1778646643000,-165.19,0.00026325,2]
[422172616,1778646643000,-325.44,0.00026346,7]
[422172617,1778646643000,-325.43,0.00026346,7]
[422172619,1778646643000,-340.27,0.00026348,7]
[422172620,1778646643000,-507.57,0.00026349,7]
[422172623,1778646643000,-325.44,0.00026375,2]
[422172629,1778646643000,-362.01,0.00026404,7]
[422172622,1778646643000,-325.43,0.00026374,2]
[422172627,1778646643000,-325.44,0.00026403,7]
[422172624,1778646643000,-340.27,0.00026376,2]
[422172625,1778646643000,-362.01,0.00026376,2]
[422172628,1778646643000,-325.43,0.00026403,7]
[422172621,1778646643000,-6306.03,0.00026369,7]
[422172630,1778646643000,-340.27,0.00026405,7]
[422172631,1778646643000,-507.57,0.00026405,7]
[422172565,1778646643000,-325.44,0.00026117,2]
[422172601,1778646643000,-325.43,0.0002626,2]
[422172600,1778646643000,-325.44,0.0002626,2]
[422172626,1778646643000,-507.57,0.00026377,2]
[422172603,1778646643000,-340.27,0.00026263,2]
[422172604,1778646643000,-507.57,0.00026264,2]
[422172567,1778646643000,-362.01,0.0002612,2]
[422172571,1778646643000,-507.57,0.00026122,2]
[422172575,1778646643000,-325.43,0.00026145,7]
[422172579,1778646643000,-507.49,0.0002615,7]
[422172576,1778646643000,-325.44,0.00026146,7]
[422172578,1778646643000,-340.27,0.00026149,7]
[422172573,1778646643000,-507.49,0.00026122,2]
[422172569,1778646643000,-340.27,0.00026121,2]
[422172577,1778646643000,-362.01,0.00026148,7]
[422172581,1778646643000,-170.61,0.00026165,30]
[422172592,1778646643000,-507.57,0.00026207,2]
[422172593,1778646643000,-507.49,0.00026207,2]
[422172580,1778646643000,-507.57,0.00026151,7]
[422172574,1778646643000,-172.13,0.00026145,30]
[422172582,1778646643000,-325.44,0.00026174,7]
[422172591,1778646643000,-340.27,0.00026206,2]
[422172598,1778646643000,-507.57,0.00026235,7]
[422172596,1778646643000,-340.27,0.00026234,7]
[422172597,1778646643000,-362.01,0.00026234,7]
[422172590,1778646643000,-362.01,0.00026205,2]
[422172587,1778646643000,-507.57,0.00026179,7]
[422172594,1778646643000,-325.43,0.00026231,7]
[422172584,1778646643000,-340.27,0.00026177,7]
[422172585,1778646643000,-362.01,0.00026177,7]
[422172583,1778646643000,-325.43,0.00026174,7]
[422172586,1778646643000,-507.49,0.00026178,7]
[422172599,1778646643000,-507.49,0.00026235,7]
[422172588,1778646643000,-325.43,0.00026202,2]
[422172589,1778646643000,-325.44,0.00026203,2]
[422172669,1778646644000,-500.0,0.00026716,7]
[422172659,1778646644000,-507.74,0.00026575,7]
[422172666,1778646644000,-500.0,0.00026716,7]
[422172665,1778646644000,-500.0,0.00026716,7]
[422172657,1778646644000,-340.32,0.00026575,7]
[422172673,1778646644000,-500.0,0.00026716,7]
[422172672,1778646644000,-500.0,0.00026716,7]
[422172671,1778646644000,-500.0,0.00026716,7]
[422172668,1778646644000,-500.0,0.00026716,7]
[422172675,1778646644000,-500.0,0.00026716,7]
[422172667,1778646644000,-500.0,0.00026716,7]
[422172662,1778646644000,-500.0,0.00026716,7]
[422172678,1778646644000,-500.0,0.00026716,7]
[422172677,1778646644000,-500.0,0.00026716,7]
[422172680,1778646644000,-500.0,0.00026716,7]
[422172670,1778646644000,-500.0,0.00026716,7]
[422172674,1778646644000,-500.0,0.00026716,7]
[422172679,1778646644000,-500.0,0.00026716,7]
[422172686,1778646644000,-530.0,0.00027,2]
[422172684,1778646644000,-250.0,0.00027,2]
[422172682,1778646644000,-263.16091522,0.00026716,7]
[422172683,1778646644000,-508.0,0.00026815,4]
[422172685,1778646644000,-1048.31578563,0.00027,2]
[422172664,1778646644000,-500.0,0.00026716,7]
[422172681,1778646644000,-500.0,0.00026716,7]
[422172676,1778646644000,-500.0,0.00026716,7]
[422172658,1778646644000,-172.15,0.00026575,2]
[422172644,1778646644000,-340.27,0.0002649,7]
[422172660,1778646644000,-170.61,0.00026575,2]
[422172688,1778646644000,-178.97,0.00027112,2]
[422172642,1778646644000,-325.44,0.00026489,7]
[422172632,1778646644000,-325.44,0.00026432,2]
[422172634,1778646644000,-340.27,0.00026433,2]
[422172635,1778646644000,-507.57,0.00026433,2]
[422172641,1778646644000,-507.57,0.00026462,2]
[422172633,1778646644000,-325.43,0.00026432,2]
[422172640,1778646644000,-362.01,0.00026461,2]
[422172637,1778646644000,-325.44,0.0002646,2]
[422172636,1778646644000,-362.01,0.00026433,2]
[422172638,1778646644000,-325.43,0.0002646,2]
[422172639,1778646644000,-340.27,0.00026461,2]
[422172661,1778646644000,-500.0,0.00026716,7]
[422172656,1778646644000,-325.54,0.00026575,7]
[422172653,1778646644000,-325.43,0.00026546,2]
[422172654,1778646644000,-507.57,0.00026547,2]
[422172655,1778646644000,-325.6,0.00026575,7]
[422172652,1778646644000,-340.27,0.00026546,2]
[422172643,1778646644000,-325.43,0.00026489,7]
[422172645,1778646644000,-507.57,0.0002649,7]
[422172651,1778646644000,-325.44,0.00026546,2]
[422172650,1778646644000,-325.43,0.00026518,7]
[422172647,1778646644000,-325.44,0.00026518,7]
[422172649,1778646644000,-507.57,0.00026518,7]
[422172648,1778646644000,-340.27,0.00026518,7]
[422172663,1778646644000,-500.0,0.00026716,7]
[422172646,1778646644000,-362.01,0.0002649,7]
[422172689,1778646644000,-344.0,0.00027116,10]
[422172687,1778646644000,-375.42,0.000271,7]
[422172692,1778646644000,-1500.0,0.00027397,2]
[422172718,1778646644000,-13575.0,0.00027463,7]
[422172721,1778646644000,-200.0,0.00027942,2]
[422172725,1778646644000,-200.0,0.00027942,2]
[422172724,1778646644000,-200.0,0.00027942,2]
[422172728,1778646644000,-200.0,0.00027942,2]
[422172735,1778646644000,-227.602348,0.00028,7]
[422172726,1778646644000,-200.0,0.00027942,2]
[422172727,1778646644000,-200.0,0.00027942,2]
[422172732,1778646644000,-214.91342137,0.00028,10]
[422172730,1778646644000,-28237.6538235,0.00028,2]
[422172733,1778646644000,-227.602348,0.00028,7]
[422172734,1778646644000,-227.602348,0.00028,7]
[422172717,1778646644000,-1279.0,0.000274,14]
[422172731,1778646644000,-600.0,0.00028,2]
[422172736,1778646644000,-227.602348,0.00028,7]
[422172746,1778646644000,-151.0,0.00028057,7]
[422172747,1778646644000,-151.0,0.00028057,7]
[422172739,1778646644000,-185.49,0.00028,2]
[422172740,1778646644000,-749.321439,0.00028,7]
[422172738,1778646644000,-749.321439,0.00028,7]
[422172741,1778646644000,-185.49,0.00028,2]
[422172742,1778646644000,-185.49,0.00028,2]
[422172743,1778646644000,-749.321439,0.00028,7]
[422172745,1778646644000,-6306.03,0.00028039,7]
[422172744,1778646644000,-508.0,0.00028024,5]
[422172691,1778646644000,-8231.08191265,0.0002739,2]
[422172737,1778646644000,-749.321439,0.00028,7]
[422172719,1778646644000,-10119.9307845,0.00027763,2]
[422172729,1778646644000,-255.0,0.00027942,2]
[422172716,1778646644000,-170.0,0.000274,7]
[422172720,1778646644000,-500.0,0.000278,7]
[422172694,1778646644000,-158.075942,0.00027397,2]
[422172693,1778646644000,-300.0,0.00027397,2]
[422172695,1778646644000,-289.443261,0.00027397,2]
[422172697,1778646644000,-289.443261,0.00027397,2]
[422172696,1778646644000,-289.443261,0.00027397,2]
[422172699,1778646644000,-151.0,0.00027397,2]
[422172698,1778646644000,-289.443261,0.00027397,2]
[422172701,1778646644000,-178.384317,0.00027397,2]
[422172709,1778646644000,-2392.17,0.00027397,10]
[422172705,1778646644000,-227.602348,0.00027397,2]
[422172700,1778646644000,-151.0,0.00027397,2]
[422172702,1778646644000,-178.384317,0.00027397,2]
[422172690,1778646644000,-4166.50777956,0.0002739,2]
[422172706,1778646644000,-227.602348,0.00027397,2]
[422172707,1778646644000,-227.602348,0.00027397,2]
[422172714,1778646644000,-3801.43,0.00027397,10]
[422172711,1778646644000,-151.0,0.00027397,2]
[422172722,1778646644000,-200.0,0.00027942,2]
[422172723,1778646644000,-200.0,0.00027942,2]
[422172713,1778646644000,-4561.71,0.00027397,10]
[422172715,1778646644000,-3167.86,0.00027397,10]
[422172708,1778646644000,-227.602348,0.00027397,2]
[422172704,1778646644000,-178.384317,0.00027397,2]
[422172710,1778646644000,-151.0,0.00027397,2]
[422172703,1778646644000,-178.384317,0.00027397,2]
[422172712,1778646644000,-151.0,0.00027397,2]
[422172787,1778646645000,-500.0,0.00028869,2]
[422172788,1778646645000,-500.0,0.00028869,2]
[422172789,1778646645000,-500.0,0.00028869,2]
[422172784,1778646645000,-500.0,0.00028869,2]
[422172785,1778646645000,-500.0,0.00028869,2]
[422172777,1778646645000,-500.0,0.00028869,2]
[422172780,1778646645000,-500.0,0.00028869,2]
[422172778,1778646645000,-500.0,0.00028869,2]
[422172779,1778646645000,-500.0,0.00028869,2]
[422172776,1778646645000,-500.0,0.00028869,2]
[422172791,1778646645000,-500.0,0.00028869,2]
[422172786,1778646645000,-500.0,0.00028869,2]
[422172790,1778646645000,-500.0,0.00028869,2]
[422172807,1778646645000,-500.0,0.00028869,2]
[422172794,1778646645000,-500.0,0.00028869,2]
[422172793,1778646645000,-500.0,0.00028869,2]
[422172796,1778646645000,-500.0,0.00028869,2]
[422172806,1778646645000,-500.0,0.00028869,2]
[422172795,1778646645000,-500.0,0.00028869,2]
[422172797,1778646645000,-500.0,0.00028869,2]
[422172798,1778646645000,-500.0,0.00028869,2]
[422172799,1778646645000,-500.0,0.00028869,2]
[422172800,1778646645000,-500.0,0.00028869,2]
[422172802,1778646645000,-500.0,0.00028869,2]
[422172803,1778646645000,-500.0,0.00028869,2]
[422172773,1778646645000,-500.0,0.00028869,2]
[422172792,1778646645000,-500.0,0.00028869,2]
[422172782,1778646645000,-500.0,0.00028869,2]
[422172748,1778646645000,-151.0,0.00028057,7]
[422172783,1778646645000,-500.0,0.00028869,2]
[422172805,1778646645000,-500.0,0.00028869,2]
[422172749,1778646645000,-151.0,0.00028057,7]
[422172759,1778646645000,-276.303252,0.00028767,7]
[422172753,1778646645000,-168.99,0.00028488,3]
[422172750,1778646645000,-151.0,0.00028057,7]
[422172752,1778646645000,-3541.0,0.00028431,2]
[422172758,1778646645000,-276.303252,0.00028767,7]
[422172755,1778646645000,-276.303252,0.00028767,7]
[422172754,1778646645000,-168.99,0.00028488,3]
[422172751,1778646645000,-1353.0,0.00028431,2]
[422172756,1778646645000,-276.303252,0.00028767,7]
[422172757,1778646645000,-276.303252,0.00028767,7]
[422172761,1778646645000,-276.303252,0.00028767,7]
[422172771,1778646645000,-500.0,0.00028869,2]
[422172760,1778646645000,-276.303252,0.00028767,7]
[422172762,1778646645000,-276.303252,0.00028767,7]
[422172768,1778646645000,-178.31621022,0.00028769,2]
[422172770,1778646645000,-500.0,0.00028869,2]
[422172764,1778646645000,-1341.707239,0.00028769,7]
[422172769,1778646645000,-151.0,0.00028869,7]
[422172766,1778646645000,-1341.707239,0.00028769,7]
[422172763,1778646645000,-1341.707239,0.00028769,7]
[422172767,1778646645000,-722.41935894,0.00028769,2]
[422172765,1778646645000,-1341.707239,0.00028769,7]
[422172772,1778646645000,-500.0,0.00028869,2]
[422172775,1778646645000,-500.0,0.00028869,2]
[422172781,1778646645000,-500.0,0.00028869,2]
[422172774,1778646645000,-500.0,0.00028869,2]
[422172804,1778646645000,-500.0,0.00028869,2]
[422172869,1778646645000,-151.0,0.00028869,7]
[422172808,1778646645000,-500.0,0.00028869,2]
[422172847,1778646645000,-500.0,0.00028869,2]
[422172840,1778646645000,-500.0,0.00028869,2]
[422172841,1778646645000,-500.0,0.00028869,2]
[422172848,1778646645000,-500.0,0.00028869,2]
[422172843,1778646645000,-500.0,0.00028869,2]
[422172842,1778646645000,-500.0,0.00028869,2]
[422172849,1778646645000,-500.0,0.00028869,2]
[422172858,1778646645000,-500.0,0.00028869,2]
[422172859,1778646645000,-500.0,0.00028869,2]
[422172855,1778646645000,-500.0,0.00028869,2]
[422172857,1778646645000,-500.0,0.00028869,2]
[422172852,1778646645000,-500.0,0.00028869,2]
[422172853,1778646645000,-500.0,0.00028869,2]
[422172850,1778646645000,-500.0,0.00028869,2]
[422172856,1778646645000,-500.0,0.00028869,2]
[422172854,1778646645000,-500.0,0.00028869,2]
[422172861,1778646645000,-640.533142,0.00028869,2]
[422172864,1778646645000,-151.0,0.00028869,7]
[422172862,1778646645000,-151.0,0.00028869,7]
[422172860,1778646645000,-500.0,0.00028869,2]
[422172866,1778646645000,-289.443261,0.00028869,7]
[422172863,1778646645000,-151.0,0.00028869,7]
[422172870,1778646645000,-151.0,0.00028869,7]
[422172865,1778646645000,-289.443261,0.00028869,7]
[422172868,1778646645000,-289.443261,0.00028869,7]
[422172867,1778646645000,-289.443261,0.00028869,7]
[422172801,1778646645000,-500.0,0.00028869,2]
[422172839,1778646645000,-500.0,0.00028869,2]
[422172846,1778646645000,-500.0,0.00028869,2]
[422172851,1778646645000,-500.0,0.00028869,2]
[422172844,1778646645000,-500.0,0.00028869,2]
[422172845,1778646645000,-500.0,0.00028869,2]
[422172812,1778646645000,-500.0,0.00028869,2]
[422172811,1778646645000,-500.0,0.00028869,2]
[422172815,1778646645000,-500.0,0.00028869,2]
[422172816,1778646645000,-500.0,0.00028869,2]
[422172814,1778646645000,-500.0,0.00028869,2]
[422172813,1778646645000,-500.0,0.00028869,2]
[422172817,1778646645000,-500.0,0.00028869,2]
[422172819,1778646645000,-500.0,0.00028869,2]
[422172818,1778646645000,-500.0,0.00028869,2]
[422172823,1778646645000,-500.0,0.00028869,2]
[422172821,1778646645000,-500.0,0.00028869,2]
[422172824,1778646645000,-500.0,0.00028869,2]
[422172825,1778646645000,-500.0,0.00028869,2]
[422172809,1778646645000,-154.028992,0.00028869,7]
[422172836,1778646645000,-500.0,0.00028869,2]
[422172830,1778646645000,-500.0,0.00028869,2]
[422172834,1778646645000,-500.0,0.00028869,2]
[422172838,1778646645000,-500.0,0.00028869,2]
[422172835,1778646645000,-500.0,0.00028869,2]
[422172831,1778646645000,-500.0,0.00028869,2]
[422172828,1778646645000,-500.0,0.00028869,2]
[422172837,1778646645000,-156.662853,0.00028869,7]
[422172832,1778646645000,-500.0,0.00028869,2]
[422172833,1778646645000,-500.0,0.00028869,2]
[422172829,1778646645000,-500.0,0.00028869,2]
[422172826,1778646645000,-500.0,0.00028869,2]
[422172827,1778646645000,-500.0,0.00028869,2]
[422172923,1778646646000,-300.0,0.00029716,2]
[422172913,1778646646000,-150.0,0.00029493,7]
[422172902,1778646646000,-151.0,0.00028869,7]
[422172907,1778646646000,-508.0,0.00029232,7]
[422172905,1778646646000,-200042.9704501,0.00029,2]
[422172910,1778646646000,-639.0,0.00029445,2]
[422172904,1778646646000,-2051.2617763,0.00029,7]
[422172911,1778646646000,-261.3024752,0.00029445,2]
[422172901,1778646646000,-151.0,0.00028869,7]
[422172908,1778646646000,-1279.0,0.000293,14]
[422172914,1778646646000,-150.0,0.00029493,7]
[422172900,1778646646000,-151.0,0.00028869,7]
[422172922,1778646646000,-300.0,0.00029716,2]
[422172921,1778646646000,-300.0,0.00029716,2]
[422172916,1778646646000,-262.0,0.00029493,7]
[422172919,1778646646000,-6306.03,0.00029709,7]
[422172912,1778646646000,-150.0,0.00029493,7]
[422172917,1778646646000,-500.0,0.00029562,2]
[422172920,1778646646000,-300.0,0.00029716,2]
[422172918,1778646646000,-166.0,0.00029583,2]
[422172925,1778646646000,-300.0,0.00029716,2]
[422172924,1778646646000,-300.0,0.00029716,2]
[422172926,1778646646000,-300.0,0.00029716,2]
[422172935,1778646646000,-150.0,0.00029716,2]
[422172931,1778646646000,-278.0,0.00029716,2]
[422172906,1778646646000,-170.0,0.000291,7]
[422172915,1778646646000,-294.0,0.00029493,7]
[422172903,1778646646000,-179.85489006,0.000289,5]
[422172937,1778646646000,-150.0,0.00029716,2]
[422172909,1778646646000,-1598.0,0.00029445,2]
[422172871,1778646646000,-151.0,0.00028869,7]
[422172872,1778646646000,-1170.488914,0.00028869,7]
[422172873,1778646646000,-1170.488914,0.00028869,7]
[422172878,1778646646000,-151.0,0.00028869,7]
[422172876,1778646646000,-151.0,0.00028869,7]
[422172875,1778646646000,-1170.488914,0.00028869,7]
[422172879,1778646646000,-151.0,0.00028869,7]
[422172877,1778646646000,-151.0,0.00028869,7]
[422172874,1778646646000,-1170.488914,0.00028869,7]
[422172880,1778646646000,-151.0,0.00028869,7]
[422172884,1778646646000,-178.384317,0.00028869,7]
[422172881,1778646646000,-151.0,0.00028869,7]
[422172883,1778646646000,-178.384317,0.00028869,7]
[422172882,1778646646000,-151.0,0.00028869,7]
[422172887,1778646646000,-348.961651,0.00028869,7]
[422172897,1778646646000,-151.0,0.00028869,7]
[422172898,1778646646000,-151.0,0.00028869,7]
[422172886,1778646646000,-178.384317,0.00028869,7]
[422172889,1778646646000,-348.961651,0.00028869,7]
[422172888,1778646646000,-472.848313,0.00028869,7]
[422172890,1778646646000,-472.848313,0.00028869,7]
[422172891,1778646646000,-348.961651,0.00028869,7]
[422172893,1778646646000,-348.961651,0.00028869,7]
[422172894,1778646646000,-472.848313,0.00028869,7]
[422172896,1778646646000,-151.0,0.00028869,7]
[422172895,1778646646000,-151.0,0.00028869,7]
[422172892,1778646646000,-472.848313,0.00028869,7]
[422172899,1778646646000,-151.0,0.00028869,7]
[422172929,1778646646000,-300.0,0.00029716,2]
[422172885,1778646646000,-178.384317,0.00028869,7]
[422172928,1778646646000,-300.0,0.00029716,2]
[422172966,1778646646000,-156.0,0.00030638,30]
[422172972,1778646646000,-154.0,0.00030701,30]
[422172965,1778646646000,-193.0,0.00030634,30]
[422172974,1778646646000,-349.43437101,0.00031,5]
[422172967,1778646646000,-156.0,0.00030638,30]
[422172976,1778646646000,-211.87,0.00031096,2]
[422172986,1778646646000,-308.0,0.000315,2]
[422172975,1778646646000,-200.0,0.00031096,2]
[422172987,1778646646000,-1000.0,0.000315,2]
[422172977,1778646646000,-6306.03,0.0003138,7]
[422172979,1778646646000,-3541.0,0.00031431,2]
[422172978,1778646646000,-154.0,0.0003139,2]
[422172980,1778646646000,-1000.0,0.000315,7]
[422172981,1778646646000,-1341.707239,0.000315,7]
[422172983,1778646646000,-1341.707239,0.000315,7]
[422172996,1778646646000,-152.0,0.00031693,3]